[Event "Titled Tuesday Blitz November 07 Late 2023"]
[White "Ozates, Tuna"]
[Black "Dodaro, Mattia"]
[WhiteFideId "6354521"]
[BlackFideId "28583400"]
[WhiteElo "2596"]
[BlackElo "2269"]
[Result "1-0"]
[Round "1"]
[TimeControl "180+1"]
[Date "2023.11.07"]
[WhiteClock "0:00:26"]
[BlackClock "0:00:09"]
[Board "135"]

1. e4 {[%clk 0:03:00]}  Nc6 {[%clk 0:02:51]} 2. Nf3 {[%clk 0:02:59]}  d6 {[%clk 0:02:51]} 3. d4 {[%clk 0:02:59]}  g6 {[%clk 0:02:51]} 4. d5 {[%clk 0:02:59]}  Nb8 {[%clk 0:02:50]} 5. c4 {[%clk 0:02:59]}  Bg7 {[%clk 0:02:51]} 6. Nc3 {[%clk 0:03:00]}  Nf6 {[%clk 0:02:51]} 7. Bd3 {[%clk 0:03:01]}  O-O {[%clk 0:02:52]} 8. O-O {[%clk 0:03:01]}  Bg4 {[%clk 0:02:53]} 9. h3 {[%clk 0:03:01]}  Bxf3 {[%clk 0:02:53]} 10. Qxf3 {[%clk 0:03:02]}  Nbd7 {[%clk 0:02:53]} 11. Qe2 {[%clk 0:03:01]}  a5 {[%clk 0:02:53]} 12. f4 {[%clk 0:03:01]}  Nc5 {[%clk 0:02:51]} 13. Bc2 {[%clk 0:03:00]}  Nfd7 {[%clk 0:02:44]} 14. Be3 {[%clk 0:02:53]}  b6 {[%clk 0:02:43]} 15. Rad1 {[%clk 0:02:51]}  e5 {[%clk 0:02:39]} 16. f5 {[%clk 0:02:49]}  f6 {[%clk 0:02:26]} 17. fxg6 {[%clk 0:02:45]}  hxg6 {[%clk 0:02:26]} 18. Qg4 {[%clk 0:02:44]}  g5 {[%clk 0:02:23]} 19. Ne2 {[%clk 0:02:32]}  Qe8 {[%clk 0:02:18]} 20. Ng3 {[%clk 0:02:31]}  Qg6 {[%clk 0:02:13]} 21. Nf5 {[%clk 0:02:31]}  Kf7 {[%clk 0:02:10]} 22. b3 {[%clk 0:02:21]}  Rh8 {[%clk 0:02:04]} 23. a3 {[%clk 0:02:20]}  Qh5 {[%clk 0:02:04]} 24. Qg3 {[%clk 0:02:20]}  Kg6 {[%clk 0:01:00]} 25. Rde1 {[%clk 0:01:23]}  Rab8 {[%clk 0:00:48]} 26. b4 {[%clk 0:01:18]}  axb4 {[%clk 0:00:48]} 27. axb4 {[%clk 0:01:19]}  Na6 {[%clk 0:00:49]} 28. Bd2 {[%clk 0:01:16]}  b5 {[%clk 0:00:49]} 29. Ra1 {[%clk 0:00:49]}  Qe2 {[%clk 0:00:29]} 30. Rf2 {[%clk 0:00:49]}  Qxc4 {[%clk 0:00:30]} 31. Bb3 {[%clk 0:00:45]}  Qxe4 {[%clk 0:00:30]} 32. Rxa6 {[%clk 0:00:35]}  Ra8 {[%clk 0:00:30]} 33. Rxa8 {[%clk 0:00:30]}  Rxa8 {[%clk 0:00:31]} 34. Qc3 {[%clk 0:00:26]}  Ra3 {[%clk 0:00:19]} 35. Bc2 {[%clk 0:00:26]}  Rxc3 {[%clk 0:00:12]} 36. Bxe4 {[%clk 0:00:26]}  Rb3 {[%clk 0:00:13]} 37. Nd4+ {[%clk 0:00:25]}  f5 {[%clk 0:00:09]} 38. Bxf5+ {[%clk 0:00:26]} 1-0


[Site "https://www.chess.com"]

[Event "Titled Tuesday Blitz November 07 Late 2023"]
[White "Gertler, David"]
[Black "Shapiro, Viktor"]
[WhiteFideId "2017377"]
[BlackFideId "4175700"]
[WhiteElo "2259"]
[BlackElo "2592"]
[Result "0-1"]
[Round "1"]
[TimeControl "180+1"]
[Date "2023.11.07"]
[WhiteClock "0:01:01"]
[BlackClock "0:01:33"]
[Board "138"]

1. e4 {[%clk 0:02:59]}  Nf6 {[%clk 0:02:59]} 2. Nc3 {[%clk 0:02:59]}  d5 {[%clk 0:02:59]} 3. e5 {[%clk 0:02:59]}  Nfd7 {[%clk 0:02:59]} 4. e6 {[%clk 0:02:59]}  fxe6 {[%clk 0:02:59]} 5. d4 {[%clk 0:02:59]}  g6 {[%clk 0:03:00]} 6. Nf3 {[%clk 0:02:58]}  Bg7 {[%clk 0:03:00]} 7. h4 {[%clk 0:02:56]}  c5 {[%clk 0:02:57]} 8. h5 {[%clk 0:02:53]}  Nc6 {[%clk 0:02:55]} 9. dxc5 {[%clk 0:02:46]}  d4 {[%clk 0:02:45]} 10. Ne4 {[%clk 0:02:44]}  Nxc5 {[%clk 0:02:45]} 11. Nxc5 {[%clk 0:02:40]}  Qa5+ {[%clk 0:02:45]} 12. Bd2 {[%clk 0:02:41]}  Qxc5 {[%clk 0:02:45]} 13. hxg6 {[%clk 0:02:40]}  hxg6 {[%clk 0:02:45]} 14. Rxh8+ {[%clk 0:02:41]}  Bxh8 {[%clk 0:02:46]} 15. Bd3 {[%clk 0:02:41]}  Ne5 {[%clk 0:02:30]} 16. Qe2 {[%clk 0:02:41]}  Nxd3+ {[%clk 0:02:29]} 17. cxd3 {[%clk 0:02:42]}  Bd7 {[%clk 0:02:24]} 18. Rc1 {[%clk 0:02:41]}  Qd5 {[%clk 0:02:23]} 19. Nh4 {[%clk 0:02:26]}  Kf7 {[%clk 0:02:15]} 20. Rc7 {[%clk 0:01:58]}  Bf6 {[%clk 0:02:07]} 21. Qg4 {[%clk 0:01:47]}  Rg8 {[%clk 0:02:05]} 22. Nf3 {[%clk 0:01:41]}  Bc6 {[%clk 0:02:00]} 23. Ng5+ {[%clk 0:01:41]}  Bxg5 {[%clk 0:01:51]} 24. Bxg5 {[%clk 0:01:42]}  Re8 {[%clk 0:01:46]} 25. Qh4 {[%clk 0:01:42]}  Qe5+ {[%clk 0:01:44]} 26. Kf1 {[%clk 0:01:01]}  Rh8 {[%clk 0:01:33]} 0-1


[Site "https://www.chess.com"]

[Event "Titled Tuesday Blitz November 07 Late 2023"]
[White "Sargsyan, Anna M."]
[Black "Broca Jimenez, Fernando"]
[WhiteFideId "13308130"]
[BlackFideId "5104742"]
[WhiteElo "2591"]
[BlackElo "2252"]
[Result "1-0"]
[Round "1"]
[TimeControl "180+1"]
[Date "2023.11.07"]
[WhiteClock "0:00:16"]
[BlackClock "0:00:00"]
[Board "139"]

1. d4 {[%clk 0:02:58]}  Nf6 {[%clk 0:02:56]} 2. c4 {[%clk 0:02:56]}  e6 {[%clk 0:02:54]} 3. Nf3 {[%clk 0:02:56]}  b6 {[%clk 0:02:53]} 4. g3 {[%clk 0:02:54]}  Bb7 {[%clk 0:02:52]} 5. Bg2 {[%clk 0:02:53]}  Be7 {[%clk 0:02:51]} 6. O-O {[%clk 0:02:52]}  O-O {[%clk 0:02:50]} 7. d5 {[%clk 0:02:53]}  exd5 {[%clk 0:02:50]} 8. Nh4 {[%clk 0:02:53]}  c6 {[%clk 0:02:48]} 9. cxd5 {[%clk 0:02:52]}  Nxd5 {[%clk 0:02:46]} 10. Nf5 {[%clk 0:02:53]}  d6 {[%clk 0:02:38]} 11. Bxd5 {[%clk 0:02:48]}  cxd5 {[%clk 0:02:38]} 12. Nc3 {[%clk 0:02:49]}  Bf6 {[%clk 0:02:33]} 13. Nxd5 {[%clk 0:02:47]}  Nc6 {[%clk 0:02:32]} 14. Bf4 {[%clk 0:02:42]}  Be5 {[%clk 0:02:31]} 15. Qd2 {[%clk 0:02:15]}  Re8 {[%clk 0:01:43]} 16. Rad1 {[%clk 0:02:13]}  Nd4 {[%clk 0:01:34]} 17. Nxd4 {[%clk 0:01:47]}  Bxd5 {[%clk 0:01:30]} 18. Nf5 {[%clk 0:01:43]}  Bxa2 {[%clk 0:01:25]} 19. Nxd6 {[%clk 0:01:39]}  Bxd6 {[%clk 0:01:17]} 20. Bxd6 {[%clk 0:01:38]}  Bb3 {[%clk 0:01:13]} 21. Rc1 {[%clk 0:01:29]}  Re6 {[%clk 0:01:12]} 22. Qc3 {[%clk 0:01:12]}  Qxd6 {[%clk 0:01:03]} 23. Qxb3 {[%clk 0:01:12]}  Rxe2 {[%clk 0:01:04]} 24. Qc4 {[%clk 0:01:08]}  Qe7 {[%clk 0:00:45]} 25. b4 {[%clk 0:00:58]}  Re8 {[%clk 0:00:34]} 26. b5 {[%clk 0:00:57]}  Qf6 {[%clk 0:00:33]} 27. Qc7 {[%clk 0:00:51]}  R2e7 {[%clk 0:00:32]} 28. Qc2 {[%clk 0:00:49]}  h6 {[%clk 0:00:32]} 29. Qa4 {[%clk 0:00:46]}  Rd8 {[%clk 0:00:28]} 30. Rc6 {[%clk 0:00:44]}  Qf3 {[%clk 0:00:25]} 31. Qc2 {[%clk 0:00:32]}  Re2 {[%clk 0:00:23]} 32. Qc4 {[%clk 0:00:22]}  g6 {[%clk 0:00:17]} 33. Rxg6+ {[%clk 0:00:21]}  Kh7 {[%clk 0:00:11]} 34. Rc6 {[%clk 0:00:20]}  Rd7 {[%clk 0:00:09]} 35. Qh4 {[%clk 0:00:17]}  Re6 {[%clk 0:00:04]} 36. Rxe6 {[%clk 0:00:16]}  fxe6 {[%clk 0:00:05]} 37. Re1 {[%clk 0:00:17]}  Rd1 {[%clk 0:00:04]} 38. Qe7+ {[%clk 0:00:17]}  Kh8 {[%clk 0:00:01]} 39. Qxe6 {[%clk 0:00:15]}  Rxe1+ {[%clk 0:00:00]} 40. Qxe1 {[%clk 0:00:16]} 1-0


[Site "https://www.chess.com"]

[Event "Titled Tuesday Blitz November 07 Late 2023"]
[White "Quirke, Jeffrey"]
[Black "Pinheiro, Iung Alicio de O."]
[WhiteFideId "2013029"]
[BlackFideId "2104350"]
[WhiteElo "2250"]
[BlackElo "2591"]
[Result "0-1"]
[Round "1"]
[TimeControl "180+1"]
[Date "2023.11.07"]
[WhiteClock "0:00:44"]
[BlackClock "0:00:24"]
[Board "140"]

1. e4 {[%clk 0:02:45]}  c5 {[%clk 0:02:59]} 2. c3 {[%clk 0:02:43]}  Nf6 {[%clk 0:02:57]} 3. e5 {[%clk 0:02:42]}  Nd5 {[%clk 0:02:57]} 4. Nf3 {[%clk 0:02:43]}  Nc6 {[%clk 0:02:49]} 5. Bc4 {[%clk 0:02:39]}  Nb6 {[%clk 0:02:48]} 6. Bb3 {[%clk 0:02:40]}  d5 {[%clk 0:02:49]} 7. exd6 {[%clk 0:02:37]}  Qxd6 {[%clk 0:02:48]} 8. O-O {[%clk 0:02:37]}  c4 {[%clk 0:02:47]} 9. Bc2 {[%clk 0:02:36]}  Bg4 {[%clk 0:02:48]} 10. Re1 {[%clk 0:02:36]}  Qf6 {[%clk 0:02:41]} 11. Na3 {[%clk 0:02:27]}  O-O-O {[%clk 0:02:01]} 12. Qe2 {[%clk 0:02:26]}  Bxf3 {[%clk 0:01:56]} 13. gxf3 {[%clk 0:02:16]}  e5 {[%clk 0:01:34]} 14. Be4 {[%clk 0:01:59]}  Bxa3 {[%clk 0:01:30]} 15. bxa3 {[%clk 0:01:59]}  Nd5 {[%clk 0:01:17]} 16. d3 {[%clk 0:01:52]}  Nxc3 {[%clk 0:01:11]} 17. Qc2 {[%clk 0:01:44]}  Nxe4 {[%clk 0:01:10]} 18. dxe4 {[%clk 0:01:28]}  Qxf3 {[%clk 0:01:07]} 19. Be3 {[%clk 0:01:21]}  Rd6 {[%clk 0:01:01]} 20. Kf1 {[%clk 0:01:04]}  Rd3 {[%clk 0:00:40]} 21. Qxc4 {[%clk 0:01:03]}  Rxe3 {[%clk 0:00:40]} 22. Rxe3 {[%clk 0:00:59]}  Qh1+ {[%clk 0:00:40]} 23. Ke2 {[%clk 0:00:59]}  Qxa1 {[%clk 0:00:41]} 24. Qxf7 {[%clk 0:00:56]}  Nd4+ {[%clk 0:00:37]} 25. Kd3 {[%clk 0:00:53]}  Qd1+ {[%clk 0:00:36]} 26. Kc4 {[%clk 0:00:54]}  Qa4+ {[%clk 0:00:31]} 27. Kd5 {[%clk 0:00:51]}  Qb5+ {[%clk 0:00:27]} 28. Kd6 {[%clk 0:00:44]}  Rd8+ {[%clk 0:00:24]} 0-1


[Site "https://www.chess.com"]

[Event "Titled Tuesday Blitz November 07 Late 2023"]
[White "Jaskolka, Tomasz"]
[Black "le-castor-faineant"]
[WhiteFideId "1170791"]
[WhiteElo "2591"]
[BlackElo "2245"]
[Result "0-1"]
[Round "1"]
[TimeControl "180+1"]
[Date "2023.11.07"]
[WhiteClock "0:00:14"]
[BlackClock "0:00:14"]
[Board "141"]

1. e4 {[%clk 0:02:50]}  e5 {[%clk 0:02:59]} 2. Nf3 {[%clk 0:02:50]}  Nf6 {[%clk 0:02:59]} 3. Nxe5 {[%clk 0:02:45]}  d6 {[%clk 0:02:58]} 4. Nf3 {[%clk 0:02:45]}  Nxe4 {[%clk 0:02:58]} 5. c4 {[%clk 0:02:46]}  c6 {[%clk 0:02:56]} 6. d3 {[%clk 0:02:36]}  Nf6 {[%clk 0:02:55]} 7. d4 {[%clk 0:02:36]}  d5 {[%clk 0:02:53]} 8. Nc3 {[%clk 0:02:36]}  Be7 {[%clk 0:02:52]} 9. Be2 {[%clk 0:02:36]}  O-O {[%clk 0:02:52]} 10. O-O {[%clk 0:02:37]}  Bg4 {[%clk 0:02:50]} 11. b3 {[%clk 0:02:31]}  Nbd7 {[%clk 0:02:49]} 12. Bb2 {[%clk 0:02:24]}  dxc4 {[%clk 0:02:49]} 13. bxc4 {[%clk 0:02:23]}  Re8 {[%clk 0:02:41]} 14. h3 {[%clk 0:02:20]}  Bh5 {[%clk 0:02:41]} 15. Re1 {[%clk 0:02:20]}  Bb4 {[%clk 0:02:35]} 16. Qb3 {[%clk 0:02:12]}  Ba5 {[%clk 0:02:32]} 17. Rad1 {[%clk 0:01:43]}  Rb8 {[%clk 0:02:21]} 18. Ne5 {[%clk 0:01:11]}  Bxe2 {[%clk 0:02:19]} 19. Rxe2 {[%clk 0:01:09]}  Bxc3 {[%clk 0:01:55]} 20. Bxc3 {[%clk 0:01:03]}  Qc7 {[%clk 0:01:52]} 21. Rde1 {[%clk 0:01:01]}  Nxe5 {[%clk 0:01:50]} 22. Rxe5 {[%clk 0:00:57]}  Rxe5 {[%clk 0:01:49]} 23. Rxe5 {[%clk 0:00:57]}  Nd7 {[%clk 0:01:49]} 24. Re3 {[%clk 0:00:50]}  h6 {[%clk 0:01:40]} 25. Qc2 {[%clk 0:00:44]}  Nf6 {[%clk 0:01:40]} 26. Qe2 {[%clk 0:00:42]}  Qd7 {[%clk 0:01:38]} 27. Re7 {[%clk 0:00:38]}  Qf5 {[%clk 0:01:36]} 28. Qe5 {[%clk 0:00:23]}  Qxe5 {[%clk 0:01:28]} 29. Rxe5 {[%clk 0:00:24]}  Re8 {[%clk 0:01:27]} 30. f4 {[%clk 0:00:23]}  Rxe5 {[%clk 0:01:26]} 31. fxe5 {[%clk 0:00:23]}  Ne4 {[%clk 0:01:26]} 32. Bb4 {[%clk 0:00:20]}  f6 {[%clk 0:01:17]} 33. e6 {[%clk 0:00:20]}  c5 {[%clk 0:01:11]} 34. dxc5 {[%clk 0:00:17]}  Ng5 {[%clk 0:01:07]} 35. e7 {[%clk 0:00:15]}  Kf7 {[%clk 0:01:07]} 36. Kf2 {[%clk 0:00:15]}  Ne4+ {[%clk 0:00:38]} 37. Ke3 {[%clk 0:00:13]}  Ng3 {[%clk 0:00:39]} 38. Kf3 {[%clk 0:00:12]}  Nf5 {[%clk 0:00:38]} 39. a4 {[%clk 0:00:06]}  Nxe7 {[%clk 0:00:38]} 40. Ke4 {[%clk 0:00:07]}  Ke6 {[%clk 0:00:36]} 41. Bc3 {[%clk 0:00:05]}  g6 {[%clk 0:00:34]} 42. g4 {[%clk 0:00:05]}  f5+ {[%clk 0:00:34]} 43. gxf5+ {[%clk 0:00:05]}  gxf5+ {[%clk 0:00:34]} 44. Kf4 {[%clk 0:00:06]}  Ng6+ {[%clk 0:00:33]} 45. Kf3 {[%clk 0:00:06]}  Ne5+ {[%clk 0:00:25]} 46. Kg3 {[%clk 0:00:06]}  Nxc4 {[%clk 0:00:24]} 47. Kh4 {[%clk 0:00:06]}  Ne5 {[%clk 0:00:20]} 48. Kh5 {[%clk 0:00:03]}  Nf7 {[%clk 0:00:19]} 49. Kg6 {[%clk 0:00:04]}  f4 {[%clk 0:00:19]} 50. a5 {[%clk 0:00:04]}  a6 {[%clk 0:00:18]} 51. Bd4 {[%clk 0:00:05]}  f3 {[%clk 0:00:18]} 52. h4 {[%clk 0:00:05]}  Ne5+ {[%clk 0:00:10]} 53. Kxh6 {[%clk 0:00:04]}  f2 {[%clk 0:00:10]} 54. Bxf2 {[%clk 0:00:04]}  Ng4+ {[%clk 0:00:10]} 55. Kg6 {[%clk 0:00:04]}  Nxf2 {[%clk 0:00:11]} 56. h5 {[%clk 0:00:04]}  Ng4 {[%clk 0:00:11]} 57. Kg5 {[%clk 0:00:04]}  Nf6 {[%clk 0:00:11]} 58. Kg6 {[%clk 0:00:05]}  Nxh5 {[%clk 0:00:11]} 59. Kxh5 {[%clk 0:00:06]}  Kd5 {[%clk 0:00:12]} 60. Kg4 {[%clk 0:00:07]}  Kxc5 {[%clk 0:00:13]} 61. Kf3 {[%clk 0:00:07]}  Kb5 {[%clk 0:00:13]} 62. Ke2 {[%clk 0:00:08]}  Kxa5 {[%clk 0:00:13]} 63. Kd3 {[%clk 0:00:09]}  Kb4 {[%clk 0:00:14]} 64. Kc2 {[%clk 0:00:10]}  Ka3 {[%clk 0:00:15]} 65. Kb1 {[%clk 0:00:09]}  Kb3 {[%clk 0:00:14]} 66. Ka1 {[%clk 0:00:10]}  b5 {[%clk 0:00:14]} 67. Kb1 {[%clk 0:00:11]}  b4 {[%clk 0:00:14]} 68. Ka1 {[%clk 0:00:11]}  Kc2 {[%clk 0:00:14]} 69. Ka2 {[%clk 0:00:11]}  b3+ {[%clk 0:00:14]} 70. Ka3 {[%clk 0:00:12]}  b2 {[%clk 0:00:14]} 71. Kb4 {[%clk 0:00:13]}  b1=Q+ {[%clk 0:00:14]} 72. Ka4 {[%clk 0:00:14]}  Qb5+ {[%clk 0:00:13]} 73. Ka3 {[%clk 0:00:14]}  Qb3# {[%clk 0:00:14]} 0-1


[Site "https://www.chess.com"]

[Event "Titled Tuesday Blitz November 07 Late 2023"]
[White "Roberson, Peter T"]
[Black "Kopacz, Grzegorz"]
[WhiteFideId "412384"]
[BlackFideId "1109880"]
[WhiteElo "2589"]
[BlackElo "2218"]
[Result "1/2-1/2"]
[Round "1"]
[TimeControl "180+1"]
[Date "2023.11.07"]
[WhiteClock "0:00:08"]
[BlackClock "0:00:28"]
[Board "143"]

1. e4 {[%clk 0:03:00]}  c5 {[%clk 0:02:59]} 2. Nf3 {[%clk 0:02:55]}  g6 {[%clk 0:02:59]} 3. Bc4 {[%clk 0:02:52]}  Bg7 {[%clk 0:02:58]} 4. O-O {[%clk 0:02:53]}  Nc6 {[%clk 0:02:58]} 5. Re1 {[%clk 0:02:53]}  e6 {[%clk 0:02:55]} 6. a3 {[%clk 0:02:52]}  Nge7 {[%clk 0:02:55]} 7. Ba2 {[%clk 0:02:53]}  O-O {[%clk 0:02:54]} 8. d3 {[%clk 0:02:53]}  d5 {[%clk 0:02:52]} 9. c3 {[%clk 0:02:52]}  b6 {[%clk 0:02:49]} 10. Bf4 {[%clk 0:02:52]}  Bb7 {[%clk 0:02:42]} 11. Qd2 {[%clk 0:02:49]}  dxe4 {[%clk 0:02:40]} 12. dxe4 {[%clk 0:02:50]}  Qxd2 {[%clk 0:02:39]} 13. Nbxd2 {[%clk 0:02:49]}  Rfd8 {[%clk 0:02:28]} 14. Nc4 {[%clk 0:02:45]}  Ba6 {[%clk 0:02:23]} 15. Rad1 {[%clk 0:02:39]}  Rxd1 {[%clk 0:02:20]} 16. Rxd1 {[%clk 0:02:40]}  Rd8 {[%clk 0:02:17]} 17. Rxd8+ {[%clk 0:02:39]}  Nxd8 {[%clk 0:02:18]} 18. Nd6 {[%clk 0:02:36]}  Ndc6 {[%clk 0:02:08]} 19. Bc4 {[%clk 0:02:21]}  Bxc4 {[%clk 0:01:57]} 20. Nxc4 {[%clk 0:02:22]}  Nc8 {[%clk 0:01:56]} 21. a4 {[%clk 0:02:15]}  h6 {[%clk 0:01:45]} 22. h4 {[%clk 0:01:58]}  Kf8 {[%clk 0:01:41]} 23. Kf1 {[%clk 0:01:58]}  Ke7 {[%clk 0:01:39]} 24. Ke2 {[%clk 0:01:58]}  Kd7 {[%clk 0:01:25]} 25. g4 {[%clk 0:01:57]}  Ke7 {[%clk 0:01:06]} 26. h5 {[%clk 0:01:45]}  g5 {[%clk 0:01:01]} 27. Be3 {[%clk 0:01:44]}  f6 {[%clk 0:00:56]} 28. Nfd2 {[%clk 0:01:42]}  Kd7 {[%clk 0:00:55]} 29. f4 {[%clk 0:01:37]}  Nd6 {[%clk 0:00:44]} 30. Nxd6 {[%clk 0:01:30]}  Kxd6 {[%clk 0:00:44]} 31. Nc4+ {[%clk 0:01:31]}  Kd7 {[%clk 0:00:44]} 32. Kf3 {[%clk 0:01:13]}  e5 {[%clk 0:00:41]} 33. fxe5 {[%clk 0:01:02]}  Nxe5+ {[%clk 0:00:40]} 34. Nxe5+ {[%clk 0:01:02]}  fxe5 {[%clk 0:00:40]} 35. Ke2 {[%clk 0:01:02]}  Kc6 {[%clk 0:00:36]} 36. Kd3 {[%clk 0:01:00]}  a6 {[%clk 0:00:33]} 37. c4 {[%clk 0:00:45]}  Bf6 {[%clk 0:00:31]} 38. Bd2 {[%clk 0:00:43]}  a5 {[%clk 0:00:30]} 39. Bc3 {[%clk 0:00:34]}  Bg7 {[%clk 0:00:30]} 40. Kc2 {[%clk 0:00:20]}  Kd6 {[%clk 0:00:29]} 41. Be1 {[%clk 0:00:20]}  Bf6 {[%clk 0:00:29]} 42. Bf2 {[%clk 0:00:20]}  Bg7 {[%clk 0:00:28]} 43. b3 {[%clk 0:00:21]}  Bf6 {[%clk 0:00:28]} 44. Kb2 {[%clk 0:00:19]}  Bg7 {[%clk 0:00:28]} 45. Be3 {[%clk 0:00:16]}  Bf6 {[%clk 0:00:28]} 46. Bg1 {[%clk 0:00:10]}  Bg7 {[%clk 0:00:27]} 47. Bf2 {[%clk 0:00:11]}  Bf6 {[%clk 0:00:28]} 48. Be3 {[%clk 0:00:11]}  Bg7 {[%clk 0:00:28]} 49. b4 {[%clk 0:00:12]}  axb4 {[%clk 0:00:27]} 50. Kb3 {[%clk 0:00:12]}  Kc6 {[%clk 0:00:27]} 51. Bf2 {[%clk 0:00:08]}  Bf6 {[%clk 0:00:27]} 52. Be3 {[%clk 0:00:09]}  Bg7 {[%clk 0:00:27]} 53. Bf2 {[%clk 0:00:10]}  Bf6 {[%clk 0:00:27]} 54. Bg3 {[%clk 0:00:10]}  Bg7 {[%clk 0:00:27]} 55. Bh2 {[%clk 0:00:11]}  Bf6 {[%clk 0:00:27]} 56. Bg1 {[%clk 0:00:12]}  Bg7 {[%clk 0:00:27]} 57. Be3 {[%clk 0:00:05]}  Bf6 {[%clk 0:00:27]} 58. Bc1 {[%clk 0:00:05]}  Bg7 {[%clk 0:00:27]} 59. Bd2 {[%clk 0:00:06]}  Bf6 {[%clk 0:00:28]} 60. Bc1 {[%clk 0:00:06]}  Bg7 {[%clk 0:00:28]} 61. Bd2 {[%clk 0:00:07]}  Bf6 {[%clk 0:00:28]} 62. Bc1 {[%clk 0:00:08]} 1/2-1/2


[Site "https://www.chess.com"]

[Event "Titled Tuesday Blitz November 07 Late 2023"]
[White "Jamal-Jamal-Jamal"]
[Black "Czopor, Maciej"]
[BlackFideId "21805431"]
[WhiteElo "2209"]
[BlackElo "2579"]
[Result "1-0"]
[Round "1"]
[TimeControl "180+1"]
[Date "2023.11.07"]
[WhiteClock "0:00:54"]
[BlackClock "0:00:00"]
[Board "144"]

1. e4 {[%clk 0:02:59]}  c6 {[%clk 0:02:56]} 2. d4 {[%clk 0:02:57]}  d5 {[%clk 0:02:56]} 3. e5 {[%clk 0:02:56]}  Bf5 {[%clk 0:02:53]} 4. Nf3 {[%clk 0:02:56]}  e6 {[%clk 0:02:53]} 5. Be2 {[%clk 0:02:56]}  h6 {[%clk 0:02:51]} 6. O-O {[%clk 0:02:54]}  Nd7 {[%clk 0:02:52]} 7. Nbd2 {[%clk 0:02:52]}  Ne7 {[%clk 0:02:52]} 8. Nb3 {[%clk 0:02:52]}  g5 {[%clk 0:02:49]} 9. a4 {[%clk 0:02:47]}  Qc7 {[%clk 0:02:46]} 10. Bd2 {[%clk 0:02:44]}  a5 {[%clk 0:02:38]} 11. c3 {[%clk 0:02:41]}  Bg7 {[%clk 0:02:37]} 12. Ne1 {[%clk 0:02:35]}  O-O {[%clk 0:02:37]} 13. f4 {[%clk 0:02:34]}  f6 {[%clk 0:02:33]} 14. exf6 {[%clk 0:02:30]}  Bxf6 {[%clk 0:02:27]} 15. Nd3 {[%clk 0:02:28]}  Ng6 {[%clk 0:02:08]} 16. fxg5 {[%clk 0:02:21]}  hxg5 {[%clk 0:02:02]} 17. Nbc5 {[%clk 0:01:59]}  Nxc5 {[%clk 0:01:52]} 18. Nxc5 {[%clk 0:02:00]}  b6 {[%clk 0:01:41]} 19. Rxf5 {[%clk 0:01:53]}  exf5 {[%clk 0:01:30]} 20. Ne6 {[%clk 0:01:52]}  Qe7 {[%clk 0:01:27]} 21. Nxf8 {[%clk 0:01:51]}  Rxf8 {[%clk 0:01:28]} 22. Bd3 {[%clk 0:01:49]}  Bg7 {[%clk 0:00:57]} 23. Qh5 {[%clk 0:01:47]}  Nf4 {[%clk 0:00:48]} 24. Bxf4 {[%clk 0:01:41]}  gxf4 {[%clk 0:00:49]} 25. Bxf5 {[%clk 0:01:41]}  Qe3+ {[%clk 0:00:40]} 26. Kh1 {[%clk 0:01:39]}  Rf6 {[%clk 0:00:25]} 27. Rf1 {[%clk 0:01:30]}  Rh6 {[%clk 0:00:22]} 28. Qg4 {[%clk 0:01:24]}  Qg3 {[%clk 0:00:14]} 29. Be6+ {[%clk 0:01:07]}  Kh8 {[%clk 0:00:11]} 30. h3 {[%clk 0:01:01]}  Qxg4 {[%clk 0:00:07]} 31. Bxg4 {[%clk 0:01:02]}  Rf6 {[%clk 0:00:06]} 32. Re1 {[%clk 0:01:02]}  c5 {[%clk 0:00:06]} 33. Re8+ {[%clk 0:00:57]}  Kh7 {[%clk 0:00:06]} 34. Rd8 {[%clk 0:00:57]}  cxd4 {[%clk 0:00:04]} 35. cxd4 {[%clk 0:00:58]}  Rf7 {[%clk 0:00:02]} 36. Rxd5 {[%clk 0:00:57]}  Rc7 {[%clk 0:00:01]} 37. Kh2 {[%clk 0:00:54]}  Rc2 {[%clk 0:00:00]} 38. Bf5+ {[%clk 0:00:54]} 1-0


[Site "https://www.chess.com"]

[Event "Titled Tuesday Blitz November 07 Late 2023"]
[White "Tologon tegin, Semetei"]
[Black "claudiuprunescu"]
[WhiteFideId "13800574"]
[WhiteElo "2577"]
[BlackElo "2203"]
[Result "1-0"]
[Round "1"]
[TimeControl "180+1"]
[Date "2023.11.07"]
[WhiteClock "0:01:16"]
[BlackClock "0:00:17"]
[Board "145"]

1. Nc3 {[%clk 0:02:59]}  Nc6 {[%clk 0:02:58]} 2. d4 {[%clk 0:02:58]}  d5 {[%clk 0:02:57]} 3. Bf4 {[%clk 0:02:59]}  a6 {[%clk 0:02:52]} 4. e3 {[%clk 0:02:58]}  Bf5 {[%clk 0:02:50]} 5. Bd3 {[%clk 0:02:58]}  Bxd3 {[%clk 0:02:48]} 6. cxd3 {[%clk 0:02:59]}  e6 {[%clk 0:02:46]} 7. Nf3 {[%clk 0:02:52]}  Bd6 {[%clk 0:02:45]} 8. Ne5 {[%clk 0:02:53]}  Nge7 {[%clk 0:02:42]} 9. Qg4 {[%clk 0:02:46]}  Ng6 {[%clk 0:02:39]} 10. Nxc6 {[%clk 0:02:43]}  bxc6 {[%clk 0:02:36]} 11. Bg3 {[%clk 0:02:43]}  h5 {[%clk 0:02:33]} 12. Qe2 {[%clk 0:02:39]}  h4 {[%clk 0:02:32]} 13. Bxd6 {[%clk 0:02:39]}  cxd6 {[%clk 0:02:32]} 14. h3 {[%clk 0:02:33]}  Rb8 {[%clk 0:02:26]} 15. Rc1 {[%clk 0:02:32]}  Qb6 {[%clk 0:02:23]} 16. b3 {[%clk 0:02:31]}  Qa5 {[%clk 0:02:16]} 17. O-O {[%clk 0:02:31]}  O-O {[%clk 0:02:14]} 18. Na4 {[%clk 0:02:24]}  Rfc8 {[%clk 0:02:10]} 19. Rc2 {[%clk 0:02:23]}  c5 {[%clk 0:01:54]} 20. Rfc1 {[%clk 0:02:22]}  Rc6 {[%clk 0:01:42]} 21. dxc5 {[%clk 0:02:22]}  dxc5 {[%clk 0:01:42]} 22. Rxc5 {[%clk 0:02:20]}  Rxc5 {[%clk 0:01:39]} 23. Rxc5 {[%clk 0:02:21]}  Qb4 {[%clk 0:01:36]} 24. d4 {[%clk 0:02:20]}  Qb7 {[%clk 0:01:27]} 25. Qc2 {[%clk 0:02:18]}  Nf8 {[%clk 0:01:24]} 26. Rc7 {[%clk 0:02:12]}  Qb5 {[%clk 0:01:23]} 27. Nc5 {[%clk 0:02:09]}  a5 {[%clk 0:01:14]} 28. Ra7 {[%clk 0:02:03]}  Rc8 {[%clk 0:01:08]} 29. Qd2 {[%clk 0:01:58]}  Qb4 {[%clk 0:00:55]} 30. Qxb4 {[%clk 0:01:54]}  axb4 {[%clk 0:00:56]} 31. Ra4 {[%clk 0:01:28]}  Rb8 {[%clk 0:00:47]} 32. Kf1 {[%clk 0:01:28]}  Rb6 {[%clk 0:00:42]} 33. Ke2 {[%clk 0:01:27]}  Ng6 {[%clk 0:00:39]} 34. Na6 {[%clk 0:01:19]}  e5 {[%clk 0:00:33]} 35. Nxb4 {[%clk 0:01:18]}  exd4 {[%clk 0:00:33]} 36. Nxd5 {[%clk 0:01:17]}  Rd6 {[%clk 0:00:33]} 37. Rxd4 {[%clk 0:01:17]}  Ne5 {[%clk 0:00:17]} 38. Ne7+ {[%clk 0:01:16]} 1-0


[Site "https://www.chess.com"]